bitfinex-derivatives/quotes_BNBF0:USTF0_20250305
["timestamp","ask_amount","ask_price","bid_price","bid_amount"]
[1741136564438,0.31497911,584.18,582.9,1.62569678]
[1741136565244,0.31498657,584.17,582.9,1.62569678]
[1741136565443,0.31498657,584.18,582.9,1.62569678]
[1741136565640,0.31498657,584.17,582.9,1.62569678]
[1741136565839,0.65735852,584.16,582.9,1.62569678]
[1741136566040,0.31498657,584.15,582.9,1.62569678]
[1741136567149,0.31498657,584.15,582.9,0.34311202]
[1741136567150,0.34238367,584.14,582.9,0.34311202]
[1741136567350,0.31498657,584.13,582.9,0.34311202]
[1741136567543,0.34239539,584.12,582.9,0.34311202]
[1741136567750,0.31498657,584.11,582.9,0.34311202]
[1741136568043,0.34240712,584.1,582.9,0.34311202]
[1741136568553,0.31499623,584.09,582.9,0.34311202]
[1741136568750,0.34241884,584.08,582.9,0.34311202]
[1741136568950,0.31499623,584.07,582.9,0.34311202]
[1741136569245,0.65749273,584.06,582.9,0.34311202]
[1741136569445,0.34244229,584.04,582.9,0.34311202]
[1741136569745,0.31506216,584.03,582.9,0.34311202]
[1741136569950,0.31506216,584.02,582.9,0.34311202]
[1741136570251,0.31506216,584.03,582.9,0.34311202]
[1741136570444,0.31506216,584.02,582.9,0.34311202]
[1741136570644,0.31506216,584.01,582.9,0.34311202]
[1741136570848,0.31506216,584.0,582.9,0.34311202]
[1741136571048,0.31506216,583.99,582.9,0.34311202]
[1741136571348,0.31506216,583.98,582.9,0.34311202]
[1741136571546,0.31506216,583.97,582.9,0.34311202]
[1741136571749,0.31506216,583.96,582.9,0.34311202]
[1741136571950,0.34244229,584.04,582.9,0.34311202]
[1741136572151,0.31513987,584.03,582.9,0.34311202]
[1741136572351,0.31513987,584.02,582.9,0.34311202]
[1741136572545,0.31513987,584.03,582.9,0.34311202]
[1741136572750,0.31513987,584.02,582.9,0.34311202]
[1741136572948,0.31513987,584.03,582.9,0.34311202]
[1741136573146,0.31513987,584.02,582.9,0.34311202]
[1741136573352,0.31513987,584.03,582.9,0.34311202]
[1741136573548,0.31513987,584.02,582.9,0.34311202]
[1741136573747,0.31513987,584.03,582.9,0.34311202]
[1741136573953,0.31513987,584.02,582.9,0.34311202]
[1741136574153,0.34244229,584.04,582.9,0.34311202]
[1741136574154,0.31513987,584.01,582.9,0.34311202]
[1741136574348,0.31513987,584.0,582.9,0.34311202]
[1741136574551,0.31513987,583.99,582.9,0.34311202]
[1741136575054,0.31513987,583.98,582.9,0.34311202]
[1741136575255,0.31513987,583.97,582.9,0.34311202]
[1741136575454,0.31513987,583.96,582.9,0.34311202]
[1741136575651,0.31513987,583.95,582.9,0.34311202]
[1741136575849,0.31513987,583.94,582.9,0.34311202]
[1741136576052,0.31513987,584.03,582.36,1.28258476]
[1741136576355,1.0164559,583.99,582.37,0.34342428]
[1741136576555,1.33159577,583.98,582.37,0.34342428]
[1741136576753,0.34248921,583.96,582.37,0.34342428]
[1741136576953,0.31513987,583.95,582.37,0.34342428]
[1741136577154,0.3425068,583.93,582.37,0.34342428]
[1741136577355,0.31527002,583.92,582.37,0.34342428]
[1741136577655,0.3425244,583.9,582.37,0.34342428]
[1741136577857,0.31527002,583.89,582.37,0.34342428]
[1741136578051,0.31527002,583.88,582.37,0.34342428]
[1741136578259,0.31527002,583.87,582.37,0.34342428]
[1741136578453,1.01717397,583.82,582.37,0.34342428]
[1741136578658,1.35975704,583.8,582.37,0.34342428]
[1741136578855,0.34259481,583.78,582.37,0.34342428]
[1741136579159,1.01717397,583.75,582.37,0.34342428]
[1741136579453,0.34262415,583.73,582.37,0.34342428]
[1741136579759,0.31527002,583.72,582.37,0.34342428]
[1741136580059,1.01717397,583.69,581.89,1.28258476]
[1741136580360,1.01717397,583.6,581.9,0.34370166]
[1741136580553,1.35988619,583.58,581.9,0.34370166]
[1741136580753,0.34272397,583.56,581.9,0.34370166]
[1741136580959,0.31527002,583.55,581.9,0.34370166]
[1741136581153,0.34274158,583.53,581.9,0.34370166]
[1741136581358,0.31527002,583.52,581.9,0.34370166]
[1741136581555,0.31527002,583.51,581.9,0.34370166]
[1741136581760,0.34276508,583.49,581.9,0.34370166]
[1741136582057,0.31527002,583.48,581.9,0.34370166]
[1741136582261,0.34278271,583.46,581.9,0.34370166]
[1741136582562,0.31527002,583.45,581.9,0.34370166]
[1741136582753,0.34280033,583.43,581.9,0.34370166]
[1741136582955,0.31527002,583.42,581.9,0.34370166]
[1741136583160,0.34281796,583.4,581.9,0.34370166]
[1741136583361,0.31527002,583.39,581.9,0.34370166]
[1741136583563,0.34283559,583.37,581.9,0.34370166]
[1741136583757,0.31527002,583.36,581.9,0.34370166]
[1741136584060,0.34285322,583.34,581.9,0.34370166]
[1741136584256,0.3154874,583.33,581.9,0.34370166]
[1741136584460,0.3154874,583.32,581.9,0.34370166]
[1741136584656,0.3154874,583.31,581.9,0.34370166]
[1741136584864,0.3154874,583.3,581.9,0.34370166]
[1741136585159,0.3154874,583.29,581.9,0.34370166]
[1741136585359,0.3154874,583.33,581.9,0.34370166]
[1741136585664,0.34287085,583.31,581.9,0.34370166]
[1741136585866,0.3154874,583.3,581.9,0.34370166]
[1741136586058,0.65837001,583.29,581.9,0.34370166]
[1741136586265,0.65837589,583.28,581.9,0.34370166]
[1741136586468,0.65838177,583.27,581.9,0.34370166]
[1741136586765,0.3154874,583.26,581.9,0.34370166]
[1741136586965,0.34290612,583.25,581.9,0.34370166]
[1741136587165,0.3154874,583.24,581.9,0.34370166]
[1741136587558,0.3154874,583.23,581.9,0.34370166]
[1741136587760,0.3154874,583.22,581.9,0.34370166]
[1741136587960,0.3154874,583.21,581.9,0.34370166]
[1741136588161,0.3154874,583.2,581.9,0.34370166]
[1741136588365,0.6584288,583.19,581.9,0.34370166]
[1741136588564,0.3154874,583.18,581.9,0.34370166]
[1741136588762,0.3154874,583.17,581.9,0.34370166]
[1741136588965,0.3154874,583.16,581.9,0.34370166]
[1741136589169,0.3154874,583.15,581.9,0.34370166]
[1741136589366,0.6584999,583.14,581.9,0.34370166]
[1741136589663,0.65850578,583.13,581.9,0.34370166]
[1741136589867,0.65851166,583.12,581.9,0.34370166]
[1741136590062,0.65851754,583.11,581.9,0.34370166]
[1741136590262,0.31552909,583.1,581.9,0.34370166]
[1741136590463,0.65852735,583.09,581.9,0.34370166]
[1741136590667,0.65853323,583.08,581.9,0.34370166]
[1741136590869,0.31552713,583.07,581.9,0.34370166]
[1741136591063,0.34301787,583.06,581.9,0.34370166]
[1741136591265,0.31552713,583.05,581.9,0.34370166]
[1741136591768,0.34302963,583.04,581.9,0.34370166]
[1741136591967,0.31552713,583.03,581.9,0.34370166]
[1741136595564,0.31550749,583.02,581.9,0.34370166]
[1741136595763,0.31550749,583.03,581.9,0.34370166]
[1741136595965,0.31550749,583.02,581.9,0.34370166]
[1741136596166,0.31550749,583.03,581.9,0.34370166]
[1741136596367,0.31550749,583.02,581.9,0.34370166]
[1741136596565,0.31550749,583.03,581.9,0.34370166]
[1741136596769,0.31550749,583.02,581.9,0.34370166]
[1741136596971,0.31550749,583.01,581.9,0.34370166]
[1741136597168,0.31550749,583.0,581.9,0.34370166]
[1741136597369,0.34302963,583.04,581.9,0.34370166]
[1741136597564,0.31541681,583.03,581.9,0.34370166]
[1741136598272,0.34302963,583.04,581.9,0.34370166]
[1741136599671,0.31541698,583.03,581.9,0.34370166]
[1741136599871,0.34302963,583.04,581.9,0.34370166]
[1741136600969,0.31541757,583.03,581.9,0.34370166]
[1741136601170,0.34302963,583.04,581.9,0.34370166]
[1741136603170,0.31541468,583.03,581.9,0.34370166]
[1741136603364,0.34302963,583.04,581.9,0.34370166]
[1741136603570,0.31541556,583.03,581.9,0.34370166]
[1741136603771,0.34302963,583.04,581.9,0.34370166]
[1741136604271,0.31541464,583.03,581.9,0.34370166]
[1741136605071,0.34302963,583.04,581.9,0.34370166]
[1741136605266,0.31540086,583.03,581.9,0.34370166]
[1741136605776,0.34302963,583.04,581.9,0.34370166]
[1741136606469,0.947,583.48,581.9,0.34370166]
[1741136606673,0.31533905,583.47,581.9,0.34370166]
[1741136606874,0.34278271,583.46,581.9,0.34370166]
[1741136607076,0.31533905,583.45,581.9,0.34370166]
[1741136609278,0.31533905,583.45,581.91,1.79147505]
[1741136610481,0.31533905,583.45,581.93,0.34368394]
[1741136610982,0.31533905,583.45,582.08,1.28258476]
[1741136611576,1.46633905,583.45,582.08,1.28258476]
[1741136611882,0.31533905,583.44,582.08,1.28258476]
[1741136612383,1.151,583.45,582.08,1.28258476]
[1741136612782,1.151,583.45,582.17,1.28258476]
[1741136613984,1.151,583.45,582.19,0.34353046]
[1741136631799,0.31524927,583.44,582.19,0.34353046]
[1741136632399,0.34278271,583.46,582.19,0.34353046]
[1741136632599,0.31524546,583.45,582.19,0.34353046]
[1741136633301,0.34278271,583.46,582.19,0.34353046]
[1741136633601,0.31528188,583.45,582.19,0.34353046]
[1741136635294,1.74228188,583.45,582.19,0.34353046]
[1741136635499,0.31528188,583.44,582.19,0.34353046]
[1741136635803,1.427,583.45,582.19,0.34353046]
[1741136636002,0.31527413,583.44,582.19,0.34353046]
[1741136637508,0.31526931,583.43,582.19,0.34353046]
[1741136637709,0.31526931,583.44,582.19,0.34353046]
[1741136637908,0.31526931,583.43,582.19,0.34353046]
[1741136638210,0.31526931,583.42,582.19,0.34353046]
[1741136638409,0.31526931,583.44,582.19,0.34353046]
[1741136638606,0.31526931,583.43,582.19,0.34353046]
[1741136638806,0.31526931,583.44,582.19,0.34353046]
[1741136639008,0.31526931,583.43,582.19,0.34353046]
[1741136639208,0.31526931,583.44,582.19,0.34353046]
[1741136639407,0.31526931,583.43,582.19,0.34353046]
[1741136639610,0.31526931,583.44,582.19,0.34353046]
[1741136639808,0.31530109,583.43,582.19,0.34353046]
[1741136640009,0.31530109,583.44,582.19,0.34353046]
[1741136640208,0.31530109,583.43,582.19,0.34353046]
[1741136640409,0.31530109,583.42,582.19,0.34353046]
[1741136640609,0.31530109,583.44,582.19,0.34353046]
[1741136640805,0.31530109,583.43,582.19,0.34353046]
[1741136641010,1.427,583.45,582.19,0.34353046]
[1741136641011,0.31530109,583.42,582.19,0.34353046]
[1741136641207,0.31530109,583.44,582.19,0.34353046]
[1741136641404,0.31530109,583.43,582.19,0.34353046]
[1741136641609,0.31530109,583.42,582.28,1.28258476]
[1741136641812,0.31530109,583.44,582.28,1.28258476]
[1741136642006,0.31530109,583.43,582.28,1.28258476]
[1741136642216,0.31530109,583.44,582.28,1.28258476]
[1741136642410,1.427,583.45,582.28,1.28258476]
[1741136642411,0.31530109,583.43,582.28,1.28258476]
[1741136642610,0.6581073,583.42,582.28,1.28258476]
[1741136642813,0.65811317,583.41,582.28,1.28258476]
[1741136643013,1.427,583.45,582.28,1.28258476]
[1741136643014,0.65811905,583.4,582.28,1.28258476]
[1741136643214,0.65812492,583.39,582.28,1.28258476]
[1741136643515,0.31530109,583.38,582.28,1.28258476]
[1741136644113,0.31530109,583.38,582.35,1.28258476]
[1741136646520,0.31530109,583.38,582.25,1.28258476]
[1741136647120,0.31529929,583.37,582.25,1.28258476]
[1741136647312,0.31529929,583.38,582.25,1.28258476]
[1741136647517,0.31529929,583.37,582.25,1.28258476]
[1741136647718,0.31529929,583.38,582.25,1.28258476]
[1741136648021,0.31529929,583.37,582.25,1.28258476]
[1741136648218,0.31529929,583.36,582.25,1.28258476]
[1741136648415,0.34282383,583.39,582.25,1.28258476]
[1741136648416,0.31529929,583.35,582.25,1.28258476]
[1741136648621,0.34282383,583.39,582.19,0.34353046]
[1741136650719,0.34282383,583.39,582.2,1.28258476]
[1741136651025,0.34282383,583.39,582.21,0.34351866]
[1741136652919,0.34282383,583.39,582.28,1.28258476]
[1741136653120,0.34282383,583.39,582.29,0.34347146]
[1741136656028,0.34282383,583.39,582.46,1.28258476]
[1741136656529,0.3153134,583.38,582.46,1.28258476]
[1741136657925,0.34283559,583.37,582.46,1.28258476]
[1741136658131,0.3153134,583.36,582.46,1.28258476]
[1741136658332,0.34284734,583.35,582.29,0.34347146]
[1741136658631,0.3153134,583.34,582.29,0.34347146]
[1741136658832,0.34284734,583.35,582.29,0.34347146]
[1741136658833,0.3153339,583.33,582.29,0.34347146]
[1741136659128,0.34284734,583.35,582.29,0.34347146]
[1741136659330,0.31537216,583.34,582.29,0.34347146]
[1741136659530,0.3428591,583.33,582.29,0.34347146]
[1741136659731,0.31537216,583.32,582.29,0.34347146]
[1741136659926,0.34287085,583.31,582.29,0.34347146]
[1741136660127,0.31537216,583.3,582.29,0.34347146]
[1741136660526,1.257,583.29,582.29,0.34347146]
[1741136660729,0.31537216,583.28,582.29,0.34347146]
[1741136661534,0.34289437,583.27,582.29,0.34347146]
[1741136661832,0.31537216,583.26,582.29,0.34347146]
[1741136662627,0.34290612,583.25,582.29,0.34347146]
[1741136662830,0.31537216,583.24,582.15,1.28258476]
[1741136663031,0.34291788,583.23,582.15,1.28258476]
[1741136663228,0.31537216,583.22,582.15,1.28258476]
[1741136663633,0.34292964,583.21,582.15,1.28258476]
[1741136663832,0.31537216,583.2,582.15,1.28258476]
[1741136664028,0.3429414,583.19,582.04,1.28258476]
[1741136664230,0.31548105,583.18,582.04,1.28258476]
[1741136664735,0.34295316,583.17,582.04,1.28258476]
[1741136664935,0.31548105,583.16,582.04,1.28258476]
[1741136666031,0.34296493,583.15,582.04,1.28258476]
[1741136666230,0.34296493,583.15,581.95,1.28258476]
[1741136666231,0.31548105,583.14,581.95,1.28258476]
[1741136666936,0.34297669,583.13,581.95,1.28258476]
[1741136667135,0.31548105,583.12,581.95,1.28258476]
[1741136668132,0.34298845,583.11,581.95,1.28258476]
[1741136668334,0.31548105,583.1,581.95,1.28258476]
[1741136668535,0.34300022,583.09,581.95,1.28258476]
[1741136668732,0.31548105,583.08,581.86,1.28258476]
[1741136668935,0.34301198,583.07,581.86,1.28258476]
[1741136669135,0.31548105,583.06,581.86,1.28258476]
[1741136669335,0.34302375,583.05,581.86,1.28258476]
[1741136669536,0.31548105,583.04,581.86,1.28258476]
[1741136670140,0.31548105,583.04,581.58,2.61731029]
[1741136670141,0.31548105,583.04,581.69,1.28258476]
[1741136670337,0.34303552,583.03,581.69,1.6264105]
[1741136670535,0.31548105,583.02,581.69,1.6264105]
[1741136670733,0.34303552,583.03,581.69,1.6264105]
[1741136671039,0.31561149,583.02,581.69,1.6264105]
[1741136671240,0.34304728,583.01,581.69,1.6264105]
[1741136671534,0.31561149,583.0,581.69,1.6264105]
[1741136671735,0.34305905,582.99,581.69,1.6264105]
[1741136671940,0.31561149,582.98,581.69,1.6264105]
[1741136672141,0.34307082,582.97,581.69,0.34382574]
[1741136672739,0.31565302,582.96,581.69,0.34382574]
[1741136673539,0.31565302,582.95,581.69,0.34382574]
[1741136673741,0.31565302,582.94,581.69,0.34382574]
[1741136673941,0.34310025,582.92,581.69,0.34382574]
[1741136674145,0.31572201,582.91,581.69,0.34382574]
[1741136674342,0.31572201,582.9,581.69,0.34382574]
[1741136674544,0.34312379,582.88,581.69,0.34382574]
[1741136674845,0.315721,582.87,581.69,0.34382574]
[1741136675041,0.34313557,582.86,581.69,0.34382574]
[1741136675244,0.315721,582.85,581.69,0.34382574]
[1741136675545,0.34314734,582.84,581.69,0.34382574]
[1741136675737,0.315721,582.83,581.69,0.34382574]
[1741136675943,0.34315912,582.82,581.69,0.34382574]
[1741136676137,0.315721,582.81,581.69,0.34382574]
[1741136676343,0.34317089,582.8,581.69,0.34382574]
[1741136676545,0.315721,582.79,581.19,1.28258476]
[1741136676747,0.315721,582.78,581.2,0.34411562]
[1741136676947,0.315721,582.77,581.2,0.34411562]
[1741136677342,0.34317089,582.8,581.2,0.34411562]
[1741136677343,0.315721,582.76,581.2,0.34411562]
[1741136677547,0.34317089,582.8,581.2,0.34411562]
[1741136677749,0.31581625,582.79,581.2,0.34411562]
[1741136678044,0.34318856,582.77,581.2,0.34411562]
[1741136678248,0.31581625,582.76,581.2,0.34411562]
[1741136678556,0.34320623,582.74,581.2,0.34411562]
[1741136678742,0.31581625,582.73,581.2,0.34411562]
[1741136678947,0.3432239,582.71,581.2,0.34411562]
[1741136679242,0.31581625,582.7,581.2,0.34411562]
[1741136679449,0.31581625,582.69,581.2,0.34411562]
[1741136679646,0.65905782,582.68,581.2,0.34411562]
[1741136679847,0.34325335,582.66,581.2,0.34411562]
[1741136680047,0.31581625,582.65,581.2,0.34411562]
[1741136680243,0.34327102,582.63,581.2,0.34411562]
[1741136680548,0.31581625,582.62,581.2,0.34411562]
[1741136680750,0.31581625,582.61,581.2,0.34411562]
[1741136680952,0.31581625,582.6,581.2,0.34411562]
[1741136681250,0.31581625,582.59,581.2,0.34411562]
[1741136681451,0.31581625,582.58,581.2,0.34411562]
[1741136681750,0.31581625,582.57,581.2,0.34411562]
[1741136681946,0.31581625,582.62,581.2,0.34411562]
[1741136682151,0.31581625,582.61,581.2,0.34411562]
[1741136682351,0.31581625,582.6,581.2,0.34411562]
[1741136682551,0.34327102,582.63,581.2,0.34411562]
[1741136682552,0.31581625,582.59,581.2,0.34411562]
[1741136682849,0.31581625,582.58,581.2,0.34411562]
[1741136683052,0.31581625,582.57,581.2,0.34411562]
[1741136683253,0.31581625,582.56,581.2,0.34411562]
[1741136683552,0.31581625,582.55,581.2,0.34411562]
[1741136683749,0.31581625,582.54,581.2,0.34411562]
[1741136683946,0.31581625,582.53,581.2,0.34411562]
[1741136684147,0.31581625,582.52,581.2,0.34411562]
[1741136684352,0.31584816,582.51,581.2,0.34411562]
[1741136684552,0.31584816,582.5,581.2,0.34411562]
[1741136684751,0.31584816,582.49,581.2,0.34411562]
[1741136684947,0.31584816,582.48,581.2,0.34411562]
[1741136685247,0.31584816,582.47,581.2,0.34411562]
[1741136685453,0.31584816,582.46,581.2,0.34411562]
[1741136685653,0.31584816,582.45,581.2,0.34411562]
[1741136685952,0.31584816,582.44,581.2,0.34411562]
[1741136686152,0.31585434,582.43,581.2,0.34411562]
[1741136686353,0.31585434,582.42,581.2,0.34411562]
[1741136686555,0.34327102,582.63,581.2,0.34411562]
[1741136686556,0.31585434,582.41,581.2,0.34411562]
[1741136686753,0.31585434,582.62,581.2,0.34411562]
[1741136687055,0.31585434,582.61,581.2,0.34411562]
[1741136687256,0.31585434,582.62,581.2,0.34411562]
[1741136687457,0.31585434,582.61,581.2,0.34411562]
[1741136687652,0.3432887,582.6,581.2,0.34411562]
[1741136687857,0.31584959,582.59,581.2,0.34411562]
[1741136688353,0.34330049,582.58,581.2,0.34411562]
[1741136688559,0.31584959,582.57,581.2,0.34411562]
[1741136693458,0.34331227,582.56,581.21,1.79528737]
[1741136693655,0.31584959,582.55,581.21,1.79528737]
[1741136693855,0.34332406,582.54,581.21,1.79528737]
[1741136694053,0.31584959,582.53,581.21,1.79528737]
[1741136694254,0.34333585,582.52,581.21,1.79528737]
[1741136694455,0.31584959,582.51,581.21,1.79528737]
[1741136694653,0.65922423,582.5,581.21,1.79528737]
[1741136694852,0.65923013,582.49,581.21,1.79528737]
[1741136695054,0.34335942,582.48,581.21,1.79528737]
[1741136695260,0.3158766,582.47,581.21,1.79528737]
[1741136695459,0.34337121,582.46,581.21,1.79528737]
[1741136695660,0.3158766,582.45,581.21,1.79528737]
[1741136695960,0.343383,582.44,581.21,1.79528737]
[1741136696259,0.3158766,582.43,581.2,0.34411562]
[1741136696460,0.3433948,582.42,581.2,0.34411562]
[1741136696666,0.3158766,582.41,581.21,1.79460844]
[1741136696854,0.34340659,582.4,581.21,1.79460844]
[1741136697053,0.3158766,582.39,581.21,1.79460844]
[1741136698060,0.34340659,582.4,581.21,1.79460844]
[1741136698260,0.31586588,582.39,581.21,1.79460844]
[1741136699056,0.31586588,582.39,581.2,0.34411562]
[1741136700763,0.34341838,582.38,581.2,0.34411562]
[1741136700959,0.31586588,582.37,581.2,0.34411562]
[1741136701157,0.34343018,582.36,581.2,0.34411562]
[1741136701362,0.31586588,582.35,581.2,0.34411562]
[1741136701859,0.34344197,582.34,581.2,0.34411562]
[1741136702065,0.31586588,582.33,581.2,0.34411562]
[1741136702258,0.34345377,582.32,581.2,0.34411562]
[1741136702460,0.31586588,582.31,581.2,0.34411562]
[1741136708376,0.31586588,582.31,581.21,1.79505586]
[1741136709667,0.34346556,582.3,581.21,1.79505586]
[1741136709864,0.31586588,582.29,581.21,1.79505586]
[1741136710065,0.34347736,582.28,581.21,1.79505586]
[1741136710264,0.31586588,582.27,581.21,1.79505586]
[1741136710465,0.34348916,582.26,581.21,1.79505586]
[1741136710667,0.31586588,582.25,581.21,1.79505586]
[1741136710963,0.34350096,582.24,581.21,1.79505586]
[1741136711166,0.31586588,582.23,581.2,0.34411562]
[1741136713572,0.34350096,582.24,581.2,0.34411562]
[1741136714469,0.34350096,582.24,581.21,1.79500185]
[1741136714667,0.34350096,582.24,581.22,0.34410378]
[1741136715067,0.31583999,582.23,581.22,0.34410378]
[1741136715271,0.34350096,582.24,581.22,0.34410378]
[1741136715575,0.34350096,582.24,581.24,1.28258476]
[1741136715772,0.34350096,582.24,581.25,0.34408602]
[1741136716574,0.315838,582.23,581.25,0.34408602]
[1741136716775,0.34350096,582.24,581.25,0.34408602]
[1741136717969,0.31584037,582.23,581.25,0.34408602]
[1741136718172,0.34350096,582.24,581.25,0.34408602]
[1741136718778,0.34350096,582.24,581.3,1.28258476]
[1741136719374,0.31591074,582.23,581.3,1.28258476]
[1741136721080,0.31591074,582.23,581.26,1.79493241]
[1741136723183,0.31591074,582.23,581.25,0.34408602]
[1741136723384,0.34350096,582.24,581.25,0.34408602]
[1741136723977,0.3158688,582.23,581.25,0.34408602]
[1741136725586,0.34350096,582.24,581.25,0.34408602]
[1741136726582,0.34350096,582.24,581.39,1.28258476]
[1741136729281,0.34350096,582.24,581.25,0.34408602]
[1741136729485,1.195,582.25,581.25,0.34408602]
[1741136731287,1.195,582.25,581.57,1.28258476]
[1741136733189,1.195,582.25,581.37,1.53833747]
[1741136733190,1.195,582.25,581.37,1.28258476]
[1741136735491,1.195,582.25,581.25,0.34408602]
[1741136737287,1.195,582.25,581.32,1.28258476]
[1741136738993,0.99088092,582.57,581.32,1.28258476]
[1741136739192,0.65912329,582.56,581.32,1.28258476]
[1741136739392,0.65912919,582.55,581.32,1.28258476]
[1741136739589,0.65913508,582.54,581.43,1.28258476]
[1741136739795,1.66500177,582.82,581.43,1.28258476]
[1741136739796,0.65914097,582.53,581.43,1.28258476]
[1741136739989,0.65914687,582.52,581.43,1.28258476]
[1741136740296,0.31581102,582.51,581.43,1.28258476]
[1741136741494,0.31581102,582.51,581.5,1.28258476]
[1741136742090,1.048,582.5,581.5,1.28258476]
[1741136742297,0.31581102,582.49,581.5,1.28258476]
[1741136742496,0.31582427,582.48,581.5,1.28258476]
[1741136742797,0.31582427,582.47,581.5,1.28258476]
[1741136742996,0.31582427,582.49,581.5,1.28258476]
[1741136743196,0.31582427,582.48,581.5,1.28258476]
[1741136743395,0.31582427,582.49,581.35,1.28258476]
[1741136743599,0.31582427,582.48,581.35,1.28258476]
[1741136743798,0.31581959,582.47,581.35,1.28258476]
[1741136743998,1.048,582.5,581.35,1.28258476]
[1741136744299,0.34335353,582.49,581.35,1.28258476]
[1741136746409,0.34335353,582.49,581.31,1.79433855]
[1741136747109,0.34335353,582.49,581.25,0.34408602]
[1741136747609,0.34335353,582.49,581.31,1.79430771]
[1741136748018,0.31582695,582.48,581.31,1.79430771]
[1741136748200,0.34336532,582.47,581.31,1.79430771]
[1741136748810,0.31583045,582.46,581.31,1.79430771]
[1741136749007,0.34337711,582.45,581.31,1.79430771]
[1741136749202,0.31583045,582.44,581.31,1.79430771]
[1741136749403,0.3433889,582.43,581.31,1.79430771]
[1741136749604,0.31583045,582.42,581.31,1.79430771]
[1741136750010,0.34340069,582.41,581.31,1.79430771]
[1741136750209,0.31583045,582.4,581.27,1.28258476]
[1741136750409,0.34341248,582.39,581.52,1.28258476]
[1741136750603,0.31588912,582.38,581.52,1.28258476]
[1741136750809,0.6593075,582.38,581.52,1.28258476]
[1741136751009,0.34342428,582.37,581.52,1.28258476]
[1741136751212,0.31588719,582.36,581.52,1.28258476]
[1741136751410,0.34343607,582.35,581.52,1.28258476]
[1741136751605,0.31588719,582.34,581.52,1.28258476]
[1741136752211,0.34344787,582.33,581.52,1.28258476]
[1741136752407,0.31591341,582.32,581.29,1.28258476]
[1741136752608,0.34345966,582.31,581.29,1.28258476]
[1741136752910,0.31591341,582.3,581.29,1.28258476]
[1741136753213,0.34347146,582.29,581.29,1.28258476]
[1741136753509,0.31591341,582.28,581.29,1.28258476]
[1741136754211,0.65939077,582.28,581.3,1.28258476]
[1741136754410,0.31591341,582.27,581.3,1.28258476]
[1741136755910,0.31591341,582.27,581.31,1.79485526]
[1741136756206,0.31591341,582.27,581.3,1.28258476]
[1741136756412,0.31591341,582.27,581.31,1.79484755]
[1741136757405,0.34347736,582.28,581.31,1.79484755]
[1741136758211,0.31588712,582.27,581.31,1.79484755]
[1741136759009,0.34347736,582.28,581.31,1.79484755]
[1741136759208,0.34347736,582.28,581.3,1.28258476]
[1741136759408,0.34347736,582.28,581.31,1.7947087]
[1741136762111,0.34347736,582.28,581.3,1.28258476]
[1741136762314,0.34347736,582.28,581.36,1.28258476]
[1741136763419,0.31587287,582.27,581.36,1.28258476]
[1741136764323,0.31587287,582.27,581.37,1.28258476]
[1741136764515,0.34347736,582.28,581.37,1.28258476]
[1741136765713,0.31586994,582.27,581.37,1.28258476]
[1741136765919,0.34347736,582.28,581.37,1.28258476]
[1741136766419,0.34347736,582.28,581.46,1.28258476]
[1741136769016,0.34347736,582.28,581.32,1.28258476]
[1741136770520,0.31589576,582.27,581.32,1.28258476]
[1741136771320,0.34347736,582.28,581.32,1.28258476]
[1741136771522,0.34347736,582.28,581.29,1.28258476]
[1741136773223,0.34347736,582.28,581.45,1.28258476]
[1741136774423,1.132,582.27,581.45,1.28258476]
[1741136775419,1.132,582.27,581.25,0.34408602]
[1741136777626,1.132,582.27,581.26,1.79483984]
[1741136779729,1.132,582.27,581.46,1.28258476]
[1741136782228,1.132,582.27,581.6,1.28258476]
[1741136783529,1.132,582.27,581.61,0.34387304]
[1741136784532,1.132,582.27,581.73,1.28258476]
[1741136785326,4.76362836,582.94,581.73,1.28258476]
[1741136785526,0.34310025,582.92,581.73,1.28258476]
[1741136785727,0.31572794,582.91,581.73,1.28258476]
[1741136785932,0.34311202,582.9,581.73,1.28258476]
[1741136786128,0.31572794,582.89,581.73,1.28258476]
[1741136786526,0.31572794,582.89,581.61,0.34387304]
[1741136788636,1.252,582.88,581.66,1.28258476]
[1741136788935,0.31572794,582.87,581.66,1.28258476]
[1741136790030,1.252,582.88,581.66,1.28258476]
[1741136790227,0.65874176,582.87,581.66,1.28258476]
[1741136790433,0.31561208,582.86,581.66,1.28258476]
[1741136790933,0.31561208,582.86,581.61,0.34387304]
[1741136791934,0.65878065,582.85,581.61,0.34387304]
[1741136792133,0.65878653,582.84,581.61,0.34387304]
[1741136792335,0.31563919,582.83,581.61,0.34387304]
[1741136792937,0.34315912,582.82,581.61,0.34387304]
[1741136793236,0.31563919,582.81,581.61,0.34387304]
[1741136793436,0.34317089,582.8,581.61,0.34387304]
[1741136793638,0.31563919,582.79,581.61,0.34387304]
[1741136793838,0.34318267,582.78,581.61,0.34387304]
[1741136794137,0.31563919,582.77,581.61,0.34387304]
[1741136794638,0.34319445,582.76,581.61,0.34387304]
[1741136794833,0.31563919,582.75,581.61,0.34387304]
[1741136795040,0.34319445,582.76,581.61,0.34387304]
[1741136795333,0.31573986,582.75,581.61,0.34387304]
[1741136795737,0.34320623,582.74,581.61,0.34387304]
[1741136795936,0.31573986,582.73,581.61,0.34387304]